bitfinex-derivatives/quotes_BNBF0:USTF0_20241231
["timestamp","ask_amount","ask_price","bid_price","bid_amount"]
[1735625649367,1.49276139,700.37,684.91,12.70531548]
[1735625649368,1.49276139,700.37,698.62,1.05941048]
[1735625649666,0.285437,700.68,698.62,1.05941048]
[1735625649667,1.49211068,700.46,698.62,1.05941048]
[1735625650063,0.285437,700.68,698.62,1.05941048]
[1735625650266,0.285437,700.68,698.49,4.9804823]
[1735625650267,1.49196675,700.54,698.67,1.05941048]
[1735625650568,0.285437,700.68,698.67,1.05941048]
[1735625650764,0.26272601,700.67,698.67,1.05941048]
[1735625651163,0.26272601,700.67,698.61,1.05941048]
[1735625651669,1.49196141,700.66,698.61,1.05941048]
[1735625652368,1.49196141,700.66,698.71,1.05941048]
[1735625653170,1.49196141,700.66,698.72,1.05941048]
[1735625654069,1.49196141,700.66,698.62,2.42662897]
[1735625654070,0.26272654,700.65,698.76,1.05941048]
[1735625654368,0.26273747,700.64,698.76,1.05941048]
[1735625654569,1.49196141,700.66,698.76,1.05941048]
[1735625654970,1.49196141,700.66,698.66,2.42662897]
[1735625654971,0.26272445,700.65,698.69,1.05941048]
[1735625655170,1.49196141,700.66,698.69,1.05941048]
[1735625655365,0.26272433,700.65,698.69,1.05941048]
[1735625655569,0.26272433,700.65,698.69,6.03989278]
[1735625655770,0.26272433,700.65,698.7,4.9804823]
[1735625655966,1.49196141,700.66,698.71,2.55385333]
[1735625656167,1.49196141,700.66,698.71,6.03989278]
[1735625656371,0.26272232,700.65,698.72,4.9804823]
[1735625656571,0.26272232,700.65,698.73,4.9804823]
[1735625656772,0.26272232,700.65,698.74,4.9804823]
[1735625657067,0.26272232,700.65,698.75,3.77226485]
[1735625657271,1.49196141,700.66,698.75,1.34563588]
[1735625658069,1.49196141,700.66,698.77,0.28621721]
[1735625660173,0.26276595,700.65,698.77,0.28621721]
[1735625660574,1.49196141,700.66,698.77,0.28621721]
[1735625660774,0.26276271,700.65,698.77,0.28621721]
[1735625661774,1.49196141,700.66,698.77,0.28621721]
[1735625662276,0.26274133,700.65,698.9,1.05941048]
[1735625662474,1.49196141,700.66,698.92,0.28615578]
[1735625668467,0.26273274,700.65,698.92,0.28615578]
[1735625669573,0.26274715,700.64,698.92,0.28615578]
[1735625669887,0.26274715,700.63,698.92,0.28615578]
[1735625670072,0.26274715,700.62,698.92,0.28615578]
[1735625670270,0.26274715,700.61,698.92,0.28615578]
[1735625670476,1.49196141,700.66,698.92,0.28615578]
[1735625670477,1.05967611,700.58,698.92,0.28615578]
[1735625670679,0.26274715,700.57,698.92,0.28615578]
[1735625671081,1.49210002,700.56,698.92,0.28615578]
[1735625671280,1.05967611,700.51,698.92,0.28615578]
[1735625671472,0.26274715,700.5,698.92,0.28615578]
[1735625671675,1.05967611,700.51,698.92,0.28615578]
[1735625672073,1.49210002,700.56,698.92,0.28615578]
[1735625672475,0.26278833,700.55,698.92,0.28615578]
[1735625672670,1.49210002,700.56,698.92,0.28615578]
[1735625672879,0.26278989,700.55,698.92,0.28615578]
[1735625673382,1.49210002,700.56,698.92,0.28615578]
[1735625673580,0.26279194,700.55,698.92,0.28615578]
[1735625674478,1.49210002,700.56,698.92,0.28615578]
[1735625674681,0.26279263,700.55,698.92,0.28615578]
[1735625675882,0.28549404,700.54,698.92,0.28615578]
[1735625676275,0.2628146,700.53,698.92,0.28615578]
[1735625676978,0.26283214,700.52,698.92,0.28615578]
[1735625677185,1.05967611,700.46,698.92,0.28615578]
[1735625678182,1.49210002,700.56,698.92,0.28615578]
[1735625678183,0.28553073,700.45,698.92,0.28615578]
[1735625679583,0.26281471,700.44,698.92,0.28615578]
[1735625679783,0.28553888,700.43,698.92,0.28615578]
[1735625680082,0.26281471,700.42,698.92,0.28615578]
[1735625680483,0.54835766,700.42,698.92,0.28615578]
[1735625680684,0.28554295,700.42,698.92,0.28615578]
[1735625681186,0.26283052,700.41,698.92,0.28615578]
[1735625681485,1.75511182,700.41,698.92,0.28615578]
[1735625681685,0.26283052,700.4,698.92,0.28615578]
[1735625682086,1.4922813,700.41,698.92,0.28615578]
[1735625682786,0.26284741,700.4,698.92,0.28615578]
[1735625683187,0.28555519,700.39,698.92,0.28615578]
[1735625683488,0.26284741,700.38,698.92,0.28615578]
[1735625683679,0.28556334,700.37,698.92,0.28615578]
[1735625683880,0.26284741,700.36,698.92,0.28615578]
[1735625684282,0.28557149,700.35,698.92,0.28615578]
[1735625684683,0.26286042,700.34,698.92,0.28615578]
[1735625684882,0.28557965,700.33,698.92,0.28615578]
[1735625691691,1.4924893,700.32,698.92,0.28615578]
[1735625701199,1.4924893,700.32,698.99,1.05941048]
[1735625701596,0.28557965,700.33,699.0,0.28612303]
[1735625701902,0.28557965,700.33,699.02,1.05941048]
[1735625701903,1.49223331,700.31,699.02,1.05941048]
[1735625703100,1.49223331,700.31,699.0,0.28612303]
[1735625704001,1.49223331,700.31,699.08,1.05941048]
[1735625705801,1.49223331,700.31,699.09,1.05941048]
[1735625706799,1.49223331,700.31,699.05,1.05941048]
[1735625707501,0.28557965,700.33,699.05,1.05941048]
[1735625707701,1.05967611,700.38,699.05,1.05941048]
[1735625708096,1.05967611,700.38,699.0,0.28612303]
[1735625708097,1.49196675,700.4,699.16,1.05941048]
[1735625709103,1.49196675,700.4,699.18,1.05941048]
[1735625709905,1.49196675,700.4,699.15,1.05941048]
[1735625710707,1.49196675,700.4,699.1,1.05941048]
[1735625712013,1.49196675,700.4,699.09,1.05941048]
[1735625712907,1.49196675,700.4,699.19,1.05941048]
[1735625713904,1.49196675,700.4,699.13,1.05941048]
[1735625715510,1.49196675,700.4,699.0,0.28612303]
[1735625716011,0.24872135,700.39,699.0,0.28612303]
[1735625716610,1.05967611,700.39,699.0,0.28612303]
[1735625717207,1.3452313,700.39,699.0,0.28612303]
[1735625717915,1.05967611,700.37,699.0,0.28612303]
[1735625718811,0.28555519,700.39,699.0,0.28612303]
[1735625719009,0.26289836,700.38,699.0,0.28612303]
[1735625720114,1.05967611,700.37,699.0,0.28612303]
[1735625720315,0.26289836,700.36,699.0,0.28612303]
[1735625721016,1.05967611,700.3,699.0,0.28612303]
[1735625721210,0.26289836,700.29,699.0,0.28612303]
[1735625721616,1.49275072,700.28,699.0,0.28612303]
[1735625721813,0.26289836,700.27,699.0,0.28612303]
[1735625723217,0.26289836,700.27,698.59,1.05941048]
[1735625723417,0.26289836,700.27,698.58,1.05941048]
[1735625723611,0.26289836,700.27,698.6,0.28628685]
[1735625724014,0.26296884,700.26,698.6,0.28628685]
[1735625724219,0.26296884,700.25,698.6,0.28628685]
[1735625724419,1.49275072,700.28,698.6,0.28628685]
[1735625724420,1.05967611,700.23,698.6,0.28628685]
[1735625724918,0.26297465,700.22,698.6,0.28628685]
[1735625725613,0.26297465,700.21,698.6,0.28628685]
[1735625725813,0.26297465,700.2,698.6,0.28628685]
[1735625726020,0.26297465,700.19,698.6,0.28628685]
[1735625726315,0.26297465,700.18,698.6,0.28628685]
[1735625726514,1.49275072,700.28,698.6,0.28628685]
[1735625726714,0.2629869,700.17,698.6,0.28628685]
[1735625726912,0.54863601,700.16,698.6,0.28628685]
[1735625727213,0.54864009,700.15,698.6,0.28628685]
[1735625727420,0.54864417,700.14,698.6,0.28628685]
[1735625727617,0.54864825,700.13,698.6,0.28628685]
[1735625727821,0.26298702,700.12,698.6,0.28628685]
[1735625728521,0.28566939,700.11,698.6,0.28628685]
[1735625728715,0.26298702,700.1,698.6,0.28628685]
[1735625728917,0.28567755,700.09,698.6,0.28628685]
[1735625729121,0.26299661,700.08,698.6,0.28628685]
[1735625729322,0.28568571,700.07,698.6,0.28628685]
[1735625729524,0.26298327,700.06,698.6,0.28628685]
[1735625729824,0.28569387,700.05,698.6,0.28628685]
[1735625730018,0.26298327,700.04,698.6,0.28628685]
[1735625730225,0.28569387,700.05,698.6,0.28628685]
[1735625730425,0.28570204,700.03,698.6,0.28628685]
[1735625730923,0.26299772,700.02,698.6,0.28628685]
[1735625731124,0.2857102,700.01,698.6,0.28628685]
[1735625731921,1.49323645,700.0,698.6,0.28628685]
[1735625733921,0.54872519,699.99,698.6,0.28628685]
[1735625734126,0.28572244,699.98,698.6,0.28628685]
[1735625742331,1.49286812,700.09,698.6,0.28628685]
[1735625764259,1.49286812,700.09,698.67,1.05941048]
[1735625764654,1.49286812,700.09,698.69,0.28624998]
[1735625772558,0.26298927,700.08,698.69,0.28624998]
[1735625772763,0.28568571,700.07,698.69,0.28624998]
[1735625772959,0.26299206,700.06,698.69,0.28624998]
[1735625773561,0.28569387,700.05,698.69,0.28624998]
[1735625805690,1.49275606,700.18,698.69,0.28624998]
[1735625806085,1.05967611,700.77,698.69,0.28624998]
[1735625806286,1.49263334,700.28,698.69,0.28624998]
[1735625806682,1.05967611,700.74,698.69,0.28624998]
[1735625806886,1.49266535,700.27,698.69,0.28624998]
[1735625807086,0.28542071,700.72,698.69,0.28624998]
[1735625807286,1.49246797,700.26,698.69,0.28624998]
[1735625807689,0.28542071,700.72,698.69,0.28624998]
[1735625807886,1.4924733,700.25,698.77,1.05941048]
[1735625808089,1.05967611,700.62,698.77,1.05941048]
[1735625808288,1.49240396,700.24,698.79,0.28620901]
[1735625808687,1.05967611,700.6,698.79,0.28620901]
[1735625808892,0.26281154,700.59,698.79,0.28620901]
[1735625809492,0.26281154,700.59,698.81,1.05941048]
[1735625809691,0.26281154,700.58,698.81,1.05941048]
[1735625809987,0.26281154,700.57,698.81,1.05941048]
[1735625810387,1.492164,700.58,698.79,0.28620901]
[1735625810388,1.492164,700.58,698.83,1.05941048]
[1735625811487,1.492164,700.58,698.79,0.28620901]
[1735625811488,1.492164,700.58,698.96,1.05941048]
[1735625812588,1.492164,700.58,698.95,1.05941048]
[1735625812792,0.26278891,700.57,698.95,1.05941048]
[1735625812988,1.492164,700.58,698.95,1.05941048]
[1735625813489,1.492164,700.58,698.91,1.05941048]
[1735625814594,1.492164,700.58,698.9,1.05941048]
[1735625816498,1.492164,700.58,698.91,1.05941048]
[1735625817599,1.492164,700.58,698.82,1.05941048]
[1735625818498,1.492164,700.58,698.79,1.34561949]
[1735625819697,1.492164,700.58,698.79,0.28620901]
[1735625821101,0.26281356,700.57,698.79,0.28620901]
[1735625821605,0.28548589,700.56,698.79,0.28620901]
[1735625822100,0.26282111,700.55,698.79,0.28620901]
[1735625822300,0.28549404,700.54,698.79,0.28620901]
[1735625825899,0.26280823,700.53,698.79,0.28620901]
[1735625826099,0.28549404,700.54,698.79,0.28620901]
[1735625828298,0.28549404,700.54,699.13,1.05941048]
[1735625829405,0.28549404,700.54,699.03,1.05941048]
[1735625830003,0.28549404,700.54,699.05,0.28610256]
[1735625833402,0.28549404,700.54,699.13,1.05941048]
[1735625834501,0.28549404,700.54,699.12,1.05941048]
[1735625835405,0.28549404,700.54,699.14,1.05941048]
[1735625836804,0.28549404,700.54,699.11,1.05941048]
[1735625837707,0.28549404,700.54,699.13,1.05941048]
[1735625838907,0.28549404,700.54,699.18,1.05941048]
[1735625840207,0.28549404,700.54,699.13,1.05941048]
[1735625841107,1.492164,700.58,699.14,1.05941048]
[1735625842108,1.492164,700.58,699.05,0.28610256]
[1735625842109,1.492164,700.58,699.06,1.05941048]
[1735625843408,1.492164,700.58,699.08,1.05941048]
[1735625844409,1.492164,700.58,699.07,1.05941048]
[1735625844706,1.05967611,701.06,699.07,1.05941048]
[1735625845009,1.4914339,700.75,699.07,1.05941048]
[1735625845210,1.05967611,701.05,699.27,1.05941048]
[1735625845411,0.26259096,701.04,699.27,1.05941048]
[1735625845611,2.5508171,701.05,699.27,1.05941048]
[1735625846214,1.49114099,701.05,699.32,1.05941048]
[1735625847113,1.49114099,701.05,699.05,0.28610256]
[1735625847114,1.49114099,701.05,699.17,1.05941048]
[1735625848316,1.49114099,701.05,699.13,1.05941048]
[1735625849116,1.49114099,701.05,699.12,1.05941048]
[1735625850316,1.49114099,701.05,699.09,1.05941048]
[1735625851316,1.49114099,701.05,699.14,1.05941048]
[1735625851920,1.49114099,701.05,699.13,1.05941048]
[1735625853119,1.49114099,701.05,699.14,1.05941048]
[1735625854421,1.49114099,701.05,699.17,1.05941048]
[1735625855319,1.49114099,701.05,699.24,1.05941048]
[1735625856422,1.49114099,701.05,699.23,1.05941048]
[1735625857719,1.05967611,701.61,699.28,1.05941048]
[1735625857935,0.26248556,701.6,699.28,1.05941048]
[1735625858116,1.49068855,701.18,699.28,1.05941048]
[1735625858316,1.05967611,701.61,699.28,1.05941048]
[1735625858622,8.46610982,709.94,699.05,0.28610256]
[1735625858623,1.49059277,701.17,699.24,1.05941048]
[1735625858822,0.28506271,701.6,699.24,1.05941048]
[1735625859023,0.26246284,701.59,699.24,1.05941048]
[1735625859621,0.26246284,701.59,699.29,1.05941048]
[1735625860022,1.49043849,701.58,699.29,1.05941048]
[1735625860218,0.26246284,701.57,699.29,1.05941048]
[1735625860521,0.26246284,701.57,699.19,1.05941048]
[1735625861320,0.26246284,701.57,699.24,1.05941048]
[1735625861724,0.26246284,701.56,699.24,1.05941048]
[1735625861921,0.26246284,701.55,699.24,1.05941048]
[1735625862129,0.26246284,701.54,699.24,1.05941048]
[1735625862328,0.26246284,701.54,699.11,2.542497]
[1735625862329,1.05967611,701.41,699.27,1.05941048]
[1735625862529,0.26246284,701.4,699.27,1.05941048]
[1735625862827,1.05967611,701.41,699.27,1.05941048]
[1735625863027,0.26257689,701.4,699.27,1.05941048]
[1735625863323,0.26257689,701.39,699.27,1.05941048]
[1735625863526,1.05967611,701.31,699.21,1.05941048]
[1735625863723,0.26257689,701.3,699.21,1.05941048]
[1735625864128,0.26257689,701.3,699.13,2.54463973]
[1735625864129,0.26257689,701.3,699.24,1.05941048]
[1735625864323,0.26256302,701.29,699.24,1.05941048]
[1735625864529,0.26256302,701.28,699.24,1.05941048]
[1735625864828,0.26256302,701.27,699.24,1.05941048]
[1735625865026,0.26256302,701.26,699.24,1.05941048]
[1735625865229,0.26256302,701.26,699.08,2.420693]
[1735625865230,0.26256302,701.25,699.21,1.05941048]
[1735625865429,0.26256302,701.24,699.21,1.05941048]
[1735625865629,0.26256302,701.23,699.21,1.05941048]
[1735625865932,0.26256302,701.22,699.21,1.05941048]
[1735625866130,0.26256302,701.21,699.21,1.05941048]
[1735625866330,0.26256302,701.2,699.21,1.05941048]
[1735625866526,1.05967611,701.32,699.21,1.05941048]
[1735625866527,0.26256302,701.19,699.21,1.05941048]
[1735625866726,0.26256302,701.18,699.21,1.05941048]
[1735625866929,0.26256302,701.17,699.21,1.05941048]
[1735625867229,0.26256302,701.16,699.22,1.05941048]
[1735625867532,0.2625893,701.15,699.22,1.05941048]
[1735625867732,0.2625893,701.14,699.22,1.05941048]
[1735625867933,0.2625893,701.13,699.22,1.05941048]
[1735625868235,0.2625893,701.12,699.22,1.05941048]
[1735625868433,0.2625893,701.11,699.22,1.05941048]
[1735625868735,0.2625893,701.1,699.14,1.05941048]
[1735625868926,1.05967611,701.2,699.14,1.05941048]
[1735625868927,0.2625893,701.09,699.14,1.05941048]
[1735625869132,0.2625893,701.08,699.14,1.05941048]
[1735625869331,0.2625893,701.07,699.19,1.05941048]
[1735625869532,0.2625893,701.06,699.19,1.05941048]
[1735625869732,0.2625893,701.05,699.19,1.05941048]
[1735625869931,1.05967611,701.15,699.21,0.28603709]
[1735625869932,0.54791153,701.04,699.21,0.28603709]
[1735625870132,0.26262111,701.03,699.21,0.28603709]
[1735625870332,0.26262111,701.03,699.21,1.34544757]
[1735625870726,0.26262112,701.02,699.21,1.34544757]
[1735625870930,0.26262112,701.01,699.21,1.34544757]
[1735625871137,0.26262112,701.0,699.21,1.34544757]
[1735625871433,0.26262112,700.99,699.21,0.28603709]
[1735625871632,0.26262112,700.98,699.21,0.28603709]
[1735625871832,0.26262112,700.97,699.21,0.28603709]
[1735625872029,0.26262112,700.96,699.21,0.28603709]
[1735625872229,0.26262112,700.95,699.21,0.28603709]
[1735625872426,0.26262112,700.94,699.21,0.28603709]
[1735625872629,0.26262112,700.93,699.21,0.28603709]
[1735625872832,0.26262112,700.92,699.21,0.28603709]
[1735625873035,0.26262112,700.91,699.21,0.28603709]
[1735625873235,0.26262112,700.9,699.21,0.28603709]
[1735625873436,0.26262112,700.89,699.21,0.28603709]
[1735625873639,1.77641544,701.04,699.21,0.28603709]
[1735625873640,0.26262112,700.88,699.21,0.28603709]
[1735625873939,0.26262112,700.87,699.21,0.28603709]
[1735625874133,0.26262112,700.86,699.21,0.28603709]
[1735625874334,1.05967611,700.99,699.21,0.28603709]
[1735625874530,1.05967611,701.02,699.21,0.28603709]
[1735625874736,0.26262487,701.01,699.21,0.28603709]
[1735625874937,1.05967611,701.02,699.21,0.28603709]
[1735625875236,0.26262236,701.01,699.21,0.28603709]
[1735625875436,1.05967611,701.02,699.21,0.28603709]
[1735625875938,1.77641544,701.04,699.21,0.28603709]
[1735625875939,0.26262617,701.01,699.21,0.28603709]
[1735625876137,0.26262617,701.0,699.21,0.28603709]
[1735625876332,0.26262617,700.99,699.21,0.28603709]
[1735625876531,1.77641544,701.04,699.21,0.28603709]
[1735625876736,0.26262524,701.03,699.21,0.28603709]
[1735625878532,0.26261023,701.02,699.21,0.28603709]
[1735625878838,0.26261023,701.01,699.21,0.28603709]
[1735625879039,0.26261023,701.0,699.21,0.28603709]
[1735625879240,1.77641544,701.04,699.31,1.05941048]
[1735625879436,0.26260798,701.03,699.31,1.05941048]
[1735625880341,0.26260798,701.03,699.33,0.28598801]
[1735625881041,0.28529856,701.02,699.33,1.34539849]
[1735625881941,0.28529856,701.02,699.33,0.28598801]
[1735625887047,0.28529856,701.02,699.35,1.05941048]
[1735625888242,0.28529856,701.02,699.33,0.28598801]
[1735625889346,0.28529856,701.02,699.39,1.05941048]
[1735625889547,0.28529856,701.02,699.41,0.2859553]
[1735625891250,0.28529856,701.02,699.49,1.05941048]
[1735625892351,0.28529856,701.02,699.51,1.05941048]
[1735625892553,0.28529856,701.02,699.53,0.28590625]
[1735625893651,0.28529856,701.02,699.62,1.05941048]
[1735625893847,0.28529856,701.02,699.64,0.2858613]
[1735625894449,1.49061938,701.12,699.64,0.2858613]
[1735625895555,1.05967611,701.68,699.64,0.2858613]
[1735625895751,1.49045977,701.14,699.64,0.2858613]
[1735625895953,0.28503833,701.66,699.64,0.2858613]
[1735625896150,1.49060874,701.13,699.64,0.2858613]
[1735625896454,0.28503833,701.66,699.64,0.2858613]
[1735625896749,0.26249625,701.65,699.64,0.2858613]
[1735625896951,0.28505052,701.63,699.64,0.2858613]
[1735625897155,0.26249625,701.62,699.64,0.2858613]
[1735625897356,1.05967611,701.57,699.64,0.2858613]
[1735625897650,0.28508303,701.55,699.64,0.2858613]
[1735625897855,0.26249625,701.54,699.64,0.2858613]
[1735625898450,1.05967611,701.41,699.64,0.2858613]
[1735625898655,0.26249625,701.4,699.64,0.2858613]
[1735625899057,0.28515212,701.38,699.64,0.2858613]
[1735625899255,0.26249625,701.37,699.64,0.2858613]
[1735625899456,0.28516432,701.35,699.64,0.2858613]
[1735625899659,0.26249625,701.34,699.64,0.2858613]
[1735625900054,0.28517245,701.33,699.64,0.2858613]
[1735625900256,0.26249625,701.32,699.64,0.2858613]
[1735625900658,0.28518059,701.31,699.64,0.2858613]
[1735625901051,0.26258962,701.3,699.64,0.2858613]
[1735625901557,0.28519279,701.28,699.64,0.2858613]
[1735625901856,0.26258962,701.27,699.64,0.2858613]
[1735625902254,0.28520499,701.25,699.64,0.2858613]
[1735625902454,0.26258962,701.24,699.64,0.2858613]
[1735625902652,1.05967611,701.17,699.64,0.2858613]
[1735625902855,0.26260102,701.16,699.64,0.2858613]
[1735625903456,0.28524566,701.15,699.64,0.2858613]
[1735625903651,0.26260102,701.14,699.64,0.2858613]
[1735625903856,0.2852538,701.13,699.64,0.2858613]
[1735625904057,0.26260102,701.12,699.64,0.2858613]
[1735625904252,0.28526194,701.11,699.64,0.2858613]
[1735625904457,0.26260102,701.1,699.64,0.2858613]
[1735625904657,0.28526194,701.11,699.64,0.2858613]
[1735625907859,1.49067791,701.1,699.64,0.2858613]
[1735625910162,1.49067791,701.1,699.81,1.05941048]
[1735625910461,1.49067791,701.1,699.82,0.28578777]
[1735625911161,1.49067791,701.1,699.82,1.34519825]
[1735625911763,1.49067791,701.1,699.82,0.28578777]
[1735625924567,1.77594392,701.1,699.82,0.28578777]
[1735625946076,1.77594392,701.1,699.88,1.05941048]
[1735625946973,1.05967611,701.4,699.88,1.05941048]
[1735625947171,1.49026297,701.19,699.87,1.05941048]
[1735625947479,1.05967611,701.52,699.87,1.05941048]
[1735625947772,1.49022043,701.26,699.87,1.05941048]
[1735625947980,0.28509928,701.51,699.87,1.05941048]
[1735625948880,0.28509928,701.51,699.88,0.28576327]
[1735625949179,1.48998648,701.5,699.88,0.28576327]
[1735625949579,0.28510741,701.49,699.88,0.28576327]
[1735625962293,0.2624839,701.48,699.88,0.28576327]
[1735625962987,0.26249445,701.47,699.88,0.28576327]
[1735625963191,0.26249445,701.46,699.88,0.28576327]
[1735625963494,0.28510741,701.49,699.88,0.28576327]
[1735625978300,0.26248039,701.48,699.88,0.28576327]
[1735625978803,0.26250006,701.47,699.88,0.28576327]
[1735625978997,0.26250006,701.46,699.88,0.28576327]
[1735625979203,1.05967611,701.28,699.88,0.28576327]
[1735625980001,1.49020447,701.27,699.88,0.28576327]
[1735625980598,1.49020447,701.27,700.09,1.05941048]
[1735625981601,1.49020447,701.27,700.11,1.05941048]
[1735625982806,1.49020447,701.27,700.13,1.05941048]
[1735625983804,1.49020447,701.27,700.04,1.05941048]
[1735625984001,1.49020447,701.27,700.05,0.28569387]
[1735626000818,0.28510741,701.49,700.05,0.28569387]
[1735626001014,1.48998116,701.38,700.05,0.28569387]
[1735626001219,0.28510741,701.49,700.05,0.28569387]
[1735626001620,1.48991737,701.38,700.05,0.28569387]
[1735626001919,0.28510741,701.49,700.05,0.28569387]
[1735626002118,1.48988548,701.37,700.12,1.05941048]
[1735626002313,0.28510741,701.49,700.12,1.05941048]
[1735626002515,1.48984295,701.36,700.12,1.05941048]
[1735626002721,0.28510741,701.49,700.12,1.05941048]
[1735626003118,0.28510741,701.49,700.05,1.34510435]
[1735626003517,0.28510741,701.49,700.06,0.28568979]
[1735626004112,1.4897154,701.48,700.06,0.28568979]
[1735626006220,0.28510741,701.49,700.06,0.28568979]
[1735626006421,1.77481218,701.49,700.06,0.28568979]
[1735626006920,0.28510741,701.49,700.06,0.28568979]
[1735626007115,1.48959318,701.57,700.06,0.28568979]
[1735626007724,1.48959318,701.57,700.14,1.05941048]
[1735626008022,1.05967611,702.03,700.14,1.05941048]
[1735626008226,1.48934349,701.69,700.14,1.05941048]
[1735626008519,1.05967611,702.03,700.14,1.05941048]
[1735626008717,1.48939661,701.68,700.14,1.05941048]
[1735626008926,1.27161134,702.67,700.06,0.28568979]
[1735626008927,1.05967611,702.29,700.06,0.28568979]
[1735626009220,1.48948692,701.67,700.06,0.28568979]
[1735626009417,0.28482319,702.19,700.06,0.28568979]
[1735626009624,1.4895188,701.66,700.06,0.28568979]
[1735626009924,1.05967611,701.98,700.25,1.05941048]
[1735626010224,0.2622974,701.97,700.25,1.05941048]
[1735626010919,0.2622974,701.97,700.32,1.05941048]
[1735626011125,1.7514497,701.96,700.32,1.05941048]
[1735626011319,0.2622974,701.95,700.32,1.05941048]
[1735626011723,0.2622974,701.95,700.31,1.05941048]
[1735626013028,0.2622974,701.95,700.25,1.05941048]
[1735626013728,1.4891523,701.96,700.25,1.05941048]
[1735626013928,0.26233094,701.95,700.18,1.24153312]
[1735626014127,0.26233094,701.95,700.14,1.24153312]
[1735626014428,1.4891523,701.96,700.13,1.05941048]
[1735626015027,1.4891523,701.96,700.06,0.28568979]
[1735626016129,1.4891523,701.96,700.1,1.05941048]
[1735626017030,1.4891523,701.96,700.06,0.28568979]
[1735626018930,1.4891523,701.96,700.13,1.05941048]
[1735626020229,1.4891523,701.96,700.12,1.05941048]
[1735626021434,1.4891523,701.96,700.09,1.05941048]
[1735626022330,1.4891523,701.96,700.17,1.05941048]
[1735626022530,1.05967611,702.6,700.17,1.05941048]
[1735626022729,1.48875944,702.1,700.17,1.05941048]
[1735626022928,1.05967611,702.6,700.17,1.05941048]
[1735626023131,1.48867452,702.09,700.17,1.05941048]
[1735626023431,1.05967611,702.6,700.17,1.05941048]
[1735626023831,1.05967611,702.77,700.29,1.05941048]
[1735626024627,1.4882554,702.18,700.29,1.05941048]
[1735626024833,1.4882554,702.18,700.13,1.05941048]
[1735626025630,1.4882554,702.18,700.13,3.49290403]
[1735626025829,1.4882554,702.18,700.14,2.54839724]
[1735626026033,1.4882554,702.18,700.15,2.43349355]
[1735626026333,1.4882554,702.18,700.15,4.98189079]
[1735626026527,1.4882554,702.18,700.15,2.43349355]
[1735626026731,1.4882554,702.18,700.13,1.05941048]
[1735626027733,1.4882554,702.18,700.1,1.05941048]
[1735626028739,1.4882554,702.18,700.13,1.05941048]
[1735626029538,1.4882554,702.18,700.09,1.05941048]
[1735626030535,1.4882554,702.18,700.09,3.59681006]
[1735626030739,1.4882554,702.18,700.09,6.01175877]
[1735626030935,1.4882554,702.18,700.1,2.53739958]
[1735626031142,1.4882554,702.18,700.1,4.94908713]
[1735626031439,1.4882554,702.18,700.11,4.94908713]
[1735626031635,1.4882554,702.18,700.12,2.41494871]
[1735626031840,1.4882554,702.18,700.12,3.64452758]
[1735626034240,1.05967611,702.89,700.12,3.64452758]
[1735626034439,1.48851003,702.18,700.12,3.64452758]
[1735626035840,1.48851003,702.18,700.07,2.28898935]
[1735626037243,1.05967611,702.94,700.07,1.22957887]
[1735626037637,1.48846758,702.26,700.07,1.22957887]
[1735626038040,1.48846758,702.26,700.06,0.28568979]
[1735626038237,1.05967611,702.97,700.07,2.4055021]
[1735626038437,0.28451525,702.95,700.06,0.28568979]
[1735626038640,1.48830313,702.38,700.06,0.28568979]
[1735626038841,0.28451525,702.95,700.06,0.28568979]
[1735626039143,1.48823949,702.38,700.2,1.05941048]
[1735626039343,0.28451525,702.95,700.2,1.05941048]
[1735626039642,0.2619866,702.94,700.2,1.05941048]
[1735626039843,0.2619866,702.94,700.29,1.05941048]
[1735626040037,0.28451525,702.95,700.29,1.05941048]
[1735626040234,0.26197667,702.94,700.29,1.05941048]
[1735626040440,1.74970717,702.94,700.29,1.05941048]
[1735626040644,0.26197667,702.93,700.29,1.05941048]
[1735626041044,0.26197667,702.93,700.31,1.05941048]
[1735626042044,0.26197667,702.93,700.22,1.05941048]
[1735626042843,0.26197667,702.93,700.15,1.05941048]
[1735626043944,0.26197667,702.93,700.2,1.05941048]
[1735626044741,0.26199205,702.92,700.19,1.05941048]
[1735626044946,0.26199205,702.91,700.19,1.05941048]
[1735626045242,0.26199205,702.9,700.19,1.05941048]
[1735626045439,0.26199205,702.89,700.19,1.05941048]
[1735626045643,0.26199205,702.88,700.19,1.05941048]
[1735626045840,0.26199205,702.87,700.19,1.05941048]
[1735626046044,0.26199205,702.86,700.19,1.05941048]
[1735626046247,0.26199205,702.85,700.19,1.05941048]
[1735626046441,0.26199205,702.84,700.19,1.05941048]
[1735626046644,0.26199205,702.83,700.18,1.05941048]
[1735626046844,0.26199205,702.82,700.18,1.05941048]
[1735626047045,0.26199205,702.81,700.18,1.05941048]
[1735626047246,1.4877305,702.94,700.18,1.05941048]
[1735626047447,0.26200084,702.93,700.31,0.28558781]
[1735626048045,0.28453144,702.91,700.31,0.28558781]
[1735626048246,0.26200084,702.9,700.31,0.28558781]
[1735626048446,0.28454359,702.88,700.31,0.28558781]
[1735626048747,0.26200084,702.87,700.31,0.28558781]
[1735626050045,0.26200547,702.86,700.31,0.28558781]
[1735626050247,0.26200547,702.87,700.31,0.28558781]
[1735626050441,0.26200547,702.86,700.31,0.28558781]